[Event "Titled Tuesday Blitz October 5 2021"]
[White "Moskalenko, Alexander"]
[Black "Stoyanov, Tsvetan"]
[WhiteFideId "4155351"]
[BlackFideId "2917173"]
[WhiteElo "2515"]
[BlackElo "2191"]
[Result "1-0"]
[Round "04"]
[TimeControl "180+1"]
[Date "2021.10.05"]
[WhiteClock "0:01:21"]
[BlackClock "0:00:02"]

1. d4 {[%clk 0:03:00]}  Nf6 {[%clk 0:02:59]} 2. c4 {[%clk 0:03:01]}  e6 {[%clk 0:02:59]} 3. Nc3 {[%clk 0:02:59]}  d5 {[%clk 0:03:00]} 4. cxd5 {[%clk 0:02:54]}  exd5 {[%clk 0:02:58]} 5. Nf3 {[%clk 0:02:55]}  c6 {[%clk 0:02:56]} 6. Bf4 {[%clk 0:02:55]}  Bd6 {[%clk 0:02:52]} 7. Bxd6 {[%clk 0:02:53]}  Qxd6 {[%clk 0:02:52]} 8. Rc1 {[%clk 0:02:54]}  O-O {[%clk 0:02:48]} 9. e3 {[%clk 0:02:55]}  Bf5 {[%clk 0:02:48]} 10. Be2 {[%clk 0:02:53]}  Nbd7 {[%clk 0:02:48]} 11. Qb3 {[%clk 0:02:53]}  b5 {[%clk 0:02:38]} 12. O-O {[%clk 0:02:42]}  a5 {[%clk 0:02:37]} 13. a4 {[%clk 0:02:38]}  b4 {[%clk 0:02:37]} 14. Nb1 {[%clk 0:02:39]}  c5 {[%clk 0:02:32]} 15. dxc5 {[%clk 0:02:36]}  Nxc5 {[%clk 0:02:32]} 16. Qd1 {[%clk 0:02:37]}  Bxb1 {[%clk 0:02:21]} 17. Rxb1 {[%clk 0:02:33]}  Rfc8 {[%clk 0:02:20]} 18. Rc1 {[%clk 0:02:27]}  Ne6 {[%clk 0:02:17]} 19. Qd3 {[%clk 0:02:24]}  h6 {[%clk 0:02:12]} 20. Rfd1 {[%clk 0:02:20]}  Rc5 {[%clk 0:02:02]} 21. Nd4 {[%clk 0:02:15]}  Rac8 {[%clk 0:01:59]} 22. Rxc5 {[%clk 0:02:15]}  Qxc5 {[%clk 0:01:52]} 23. Nb3 {[%clk 0:02:14]}  Qc2 {[%clk 0:01:42]} 24. Rd2 {[%clk 0:02:14]}  Qxd3 {[%clk 0:01:35]} 25. Bxd3 {[%clk 0:02:15]}  Nd7 {[%clk 0:01:04]} 26. Rc2 {[%clk 0:02:13]}  Ra8 {[%clk 0:00:26]} 27. Bb5 {[%clk 0:02:13]}  Ne5 {[%clk 0:00:26]} 28. h3 {[%clk 0:02:08]}  g5 {[%clk 0:00:24]} 29. Nd4 {[%clk 0:02:04]}  Kg7 {[%clk 0:00:13]} 30. Nf5+ {[%clk 0:02:03]}  Kf6 {[%clk 0:00:11]} 31. Nxh6 {[%clk 0:02:03]}  Rh8 {[%clk 0:00:10]} 32. Ng4+ {[%clk 0:02:02]}  Nxg4 {[%clk 0:00:10]} 33. hxg4 {[%clk 0:02:02]}  Ke5 {[%clk 0:00:11]} 34. Bd7 {[%clk 0:02:00]}  Rd8 {[%clk 0:00:05]} 35. Bxe6 {[%clk 0:02:00]}  fxe6 {[%clk 0:00:05]} 36. Rc5 {[%clk 0:02:00]}  Ke4 {[%clk 0:00:06]} 37. Rxa5 {[%clk 0:02:00]}  Kd3 {[%clk 0:00:06]} 38. Rc5 {[%clk 0:01:55]}  e5 {[%clk 0:00:04]} 39. a5 {[%clk 0:01:53]}  d4 {[%clk 0:00:05]} 40. Rxe5 {[%clk 0:01:49]}  Kc2 {[%clk 0:00:04]} 41. exd4 {[%clk 0:01:49]}  Kxb2 {[%clk 0:00:04]} 42. a6 {[%clk 0:01:33]}  Rxd4 {[%clk 0:00:03]} 43. a7 {[%clk 0:01:30]}  Rd1+ {[%clk 0:00:03]} 44. Kh2 {[%clk 0:01:29]}  Ra1 {[%clk 0:00:04]} 45. Re2+ {[%clk 0:01:27]}  Kc3 {[%clk 0:00:04]} 46. Re3+ {[%clk 0:01:26]}  Kc2 {[%clk 0:00:04]} 47. Re7 {[%clk 0:01:25]}  b3 {[%clk 0:00:04]} 48. Rc7+ {[%clk 0:01:25]}  Kb1 {[%clk 0:00:04]} 49. f4 {[%clk 0:01:24]}  gxf4 {[%clk 0:00:04]} 50. g5 {[%clk 0:01:24]}  b2 {[%clk 0:00:04]} 51. g6 {[%clk 0:01:25]}  Ra6 {[%clk 0:00:03]} 52. g7 {[%clk 0:01:24]}  Ka1 {[%clk 0:00:02]} 53. Rb7 {[%clk 0:01:21]}  Rxa7 {[%clk 0:00:02]} 54. Rxa7+ {[%clk 0:01:21]} 1-0


[Site "https://www.chess.com"]

[Event "Titled Tuesday Blitz October 5 2021"]
[White "Nenezic, Marko"]
[Black "Gallo Garcia, Kemel Antonio"]
[WhiteFideId "912123"]
[BlackFideId "3523896"]
[WhiteElo "2484"]
[BlackElo "2515"]
[Result "1-0"]
[Round "04"]
[TimeControl "180+1"]
[Date "2021.10.05"]
[WhiteClock "0:00:03"]
[BlackClock "0:00:01"]

1. Nf3 {[%clk 0:03:00]}  Nf6 {[%clk 0:02:57]} 2. c4 {[%clk 0:03:01]}  c5 {[%clk 0:02:56]} 3. Nc3 {[%clk 0:03:01]}  Nc6 {[%clk 0:02:52]} 4. d4 {[%clk 0:03:01]}  cxd4 {[%clk 0:02:53]} 5. Nxd4 {[%clk 0:03:02]}  g6 {[%clk 0:02:52]} 6. e4 {[%clk 0:03:00]}  Bg7 {[%clk 0:02:51]} 7. Be3 {[%clk 0:03:00]}  O-O {[%clk 0:02:51]} 8. Be2 {[%clk 0:02:58]}  d6 {[%clk 0:02:50]} 9. O-O {[%clk 0:02:57]}  Bd7 {[%clk 0:02:49]} 10. Nc2 {[%clk 0:02:57]}  Qa5 {[%clk 0:02:44]} 11. f3 {[%clk 0:02:54]}  Rfc8 {[%clk 0:02:44]} 12. Qd2 {[%clk 0:02:43]}  a6 {[%clk 0:02:35]} 13. Rab1 {[%clk 0:02:32]}  Rab8 {[%clk 0:02:25]} 14. Rfc1 {[%clk 0:02:23]}  b5 {[%clk 0:02:21]} 15. b4 {[%clk 0:02:23]}  Qd8 {[%clk 0:02:05]} 16. cxb5 {[%clk 0:02:23]}  axb5 {[%clk 0:02:02]} 17. Nxb5 {[%clk 0:02:24]}  Ne5 {[%clk 0:01:49]} 18. Ncd4 {[%clk 0:02:15]}  Rxc1+ {[%clk 0:01:08]} 19. Rxc1 {[%clk 0:02:13]}  Ne8 {[%clk 0:01:07]} 20. a4 {[%clk 0:01:58]}  Ra8 {[%clk 0:01:04]} 21. a5 {[%clk 0:01:58]}  Rc8 {[%clk 0:01:03]} 22. Na7 {[%clk 0:01:47]}  Rxc1+ {[%clk 0:01:00]} 23. Qxc1 {[%clk 0:01:48]}  Qb8 {[%clk 0:00:57]} 24. Nac6 {[%clk 0:01:46]}  Bxc6 {[%clk 0:00:42]} 25. Nxc6 {[%clk 0:01:47]}  Nxc6 {[%clk 0:00:41]} 26. Qxc6 {[%clk 0:01:46]}  Kf8 {[%clk 0:00:38]} 27. b5 {[%clk 0:01:41]}  d5 {[%clk 0:00:31]} 28. Qxd5 {[%clk 0:01:02]}  Qc7 {[%clk 0:00:29]} 29. Qc6 {[%clk 0:01:00]}  Qxa5 {[%clk 0:00:28]} 30. Bf1 {[%clk 0:00:54]}  Qb4 {[%clk 0:00:22]} 31. Qc5 {[%clk 0:00:49]}  Qb3 {[%clk 0:00:20]} 32. e5 {[%clk 0:00:43]}  f6 {[%clk 0:00:17]} 33. exf6 {[%clk 0:00:35]}  Bxf6 {[%clk 0:00:18]} 34. b6 {[%clk 0:00:35]}  Nd6 {[%clk 0:00:18]} 35. Bf2 {[%clk 0:00:32]}  Qb2 {[%clk 0:00:17]} 36. Qd5 {[%clk 0:00:25]}  Kg7 {[%clk 0:00:14]} 37. g4 {[%clk 0:00:25]}  h6 {[%clk 0:00:14]} 38. h4 {[%clk 0:00:25]}  g5 {[%clk 0:00:15]} 39. h5 {[%clk 0:00:26]}  Kf8 {[%clk 0:00:14]} 40. Bc4 {[%clk 0:00:21]}  Qc1+ {[%clk 0:00:13]} 41. Bf1 {[%clk 0:00:20]}  Qb2 {[%clk 0:00:13]} 42. Kg2 {[%clk 0:00:20]}  Qc1 {[%clk 0:00:10]} 43. Bd3 {[%clk 0:00:19]}  Qf4 {[%clk 0:00:08]} 44. Bh7 {[%clk 0:00:17]}  Nf7 {[%clk 0:00:05]} 45. b7 {[%clk 0:00:17]}  Kg7 {[%clk 0:00:05]} 46. Bg6 {[%clk 0:00:14]}  Nh8 {[%clk 0:00:06]} 47. Bf5 {[%clk 0:00:13]}  Be5 {[%clk 0:00:06]} 48. Kf1 {[%clk 0:00:07]}  Qc1+ {[%clk 0:00:05]} 49. Kg2 {[%clk 0:00:07]}  Qf4 {[%clk 0:00:05]} 50. Qe6 {[%clk 0:00:07]}  Qh2+ {[%clk 0:00:03]} 51. Kf1 {[%clk 0:00:08]}  Bf6 {[%clk 0:00:02]} 52. Qc8 {[%clk 0:00:07]}  Be5 {[%clk 0:00:02]} 53. Qe8 {[%clk 0:00:06]}  Bd6 {[%clk 0:00:01]} 54. b8=Q {[%clk 0:00:05]}  Bxb8 {[%clk 0:00:01]} 55. Qxe7+ {[%clk 0:00:05]}  Nf7 {[%clk 0:00:02]} 56. Bd4+ {[%clk 0:00:06]}  Be5 {[%clk 0:00:02]} 57. Bg6 {[%clk 0:00:03]}  Qh1+ {[%clk 0:00:01]} 58. Ke2 {[%clk 0:00:03]}  Qg2+ {[%clk 0:00:01]} 59. Bf2 {[%clk 0:00:03]} 1-0


[Site "https://www.chess.com"]

[Event "Titled Tuesday Blitz October 5 2021"]
[White "Nozdrachev, Leonid"]
[Black "Gombocz, Ferenc Jr."]
[WhiteFideId "24113433"]
[BlackFideId "775029"]
[WhiteElo "2124"]
[BlackElo "1913"]
[Result "1-0"]
[Round "04"]
[TimeControl "180+1"]
[Date "2021.10.05"]
[WhiteClock "0:01:36"]
[BlackClock "0:00:07"]

1. e4 {[%clk 0:03:00]}  e5 {[%clk 0:02:59]} 2. Nf3 {[%clk 0:03:00]}  Nc6 {[%clk 0:02:59]} 3. Bc4 {[%clk 0:03:00]}  Nf6 {[%clk 0:02:58]} 4. d3 {[%clk 0:03:01]}  Be7 {[%clk 0:02:57]} 5. Nc3 {[%clk 0:03:01]}  O-O {[%clk 0:02:57]} 6. a4 {[%clk 0:03:01]}  d6 {[%clk 0:02:55]} 7. a5 {[%clk 0:03:01]}  Bg4 {[%clk 0:02:52]} 8. a6 {[%clk 0:03:00]}  bxa6 {[%clk 0:02:49]} 9. Rxa6 {[%clk 0:02:57]}  Nd4 {[%clk 0:02:49]} 10. Be3 {[%clk 0:02:54]}  Bxf3 {[%clk 0:02:46]} 11. gxf3 {[%clk 0:02:54]}  Qc8 {[%clk 0:02:40]} 12. f4 {[%clk 0:02:50]}  Qh3 {[%clk 0:02:36]} 13. fxe5 {[%clk 0:02:45]}  Nf3+ {[%clk 0:02:18]} 14. Ke2 {[%clk 0:02:44]}  dxe5 {[%clk 0:02:17]} 15. Qf1 {[%clk 0:02:37]}  Qh5 {[%clk 0:02:15]} 16. Kd1 {[%clk 0:02:30]}  Ng4 {[%clk 0:01:48]} 17. Kc1 {[%clk 0:02:24]}  Nxe3 {[%clk 0:01:45]} 18. fxe3 {[%clk 0:02:25]}  Bg5 {[%clk 0:01:40]} 19. Nd5 {[%clk 0:02:17]}  Nd4 {[%clk 0:01:06]} 20. Kb1 {[%clk 0:02:10]}  Ne6 {[%clk 0:00:56]} 21. Rg1 {[%clk 0:02:07]}  Rfc8 {[%clk 0:00:44]} 22. h4 {[%clk 0:01:55]}  Bxh4 {[%clk 0:00:36]} 23. Qh3 {[%clk 0:01:53]}  Qh6 {[%clk 0:00:20]} 24. Ne7+ {[%clk 0:01:49]}  Bxe7 {[%clk 0:00:17]} 25. Qxh6 {[%clk 0:01:48]}  Bg5 {[%clk 0:00:12]} 26. Rxg5 {[%clk 0:01:45]}  Nxg5 {[%clk 0:00:12]} 27. Qxg5 {[%clk 0:01:45]}  Rf8 {[%clk 0:00:10]} 28. Rc6 {[%clk 0:01:42]}  h6 {[%clk 0:00:10]} 29. Qxe5 {[%clk 0:01:42]}  Rac8 {[%clk 0:00:10]} 30. Rxc7 {[%clk 0:01:41]}  Rxc7 {[%clk 0:00:10]} 31. Qxc7 {[%clk 0:01:42]}  h5 {[%clk 0:00:11]} 32. e5 {[%clk 0:01:39]}  h4 {[%clk 0:00:11]} 33. Qd7 {[%clk 0:01:38]}  g6 {[%clk 0:00:08]} 34. Qg4 {[%clk 0:01:36]}  Kg7 {[%clk 0:00:07]} 35. Qxh4 {[%clk 0:01:36]}  Rh8 {[%clk 0:00:07]} 36. Qf6+ {[%clk 0:01:36]} 1-0


[Site "https://www.chess.com"]

[Event "Titled Tuesday Blitz October 5 2021"]
[White "Pastar, Slaven"]
[Black "Gorin, Leonid"]
[WhiteFideId "14402718"]
[BlackFideId "4131991"]
[WhiteElo "2198"]
[BlackElo "2363"]
[Result "0-1"]
[Round "04"]
[TimeControl "180+1"]
[Date "2021.10.05"]
[WhiteClock "0:00:05"]
[BlackClock "0:01:24"]

1. b3 {[%clk 0:03:00]}  e5 {[%clk 0:02:56]} 2. Bb2 {[%clk 0:03:01]}  Nc6 {[%clk 0:02:56]} 3. Nf3 {[%clk 0:03:01]}  e4 {[%clk 0:02:53]} 4. Nd4 {[%clk 0:03:01]}  Nxd4 {[%clk 0:02:53]} 5. Bxd4 {[%clk 0:03:02]}  Nf6 {[%clk 0:02:53]} 6. e3 {[%clk 0:03:03]}  Bd6 {[%clk 0:02:48]} 7. c4 {[%clk 0:03:01]}  Qe7 {[%clk 0:02:48]} 8. Qc2 {[%clk 0:02:57]}  Be5 {[%clk 0:02:46]} 9. Qc3 {[%clk 0:02:48]}  d6 {[%clk 0:02:46]} 10. Be2 {[%clk 0:02:41]}  Bg4 {[%clk 0:02:40]} 11. Bxe5 {[%clk 0:02:37]}  Qxe5 {[%clk 0:02:37]} 12. Qxe5+ {[%clk 0:02:33]}  dxe5 {[%clk 0:02:37]} 13. Nc3 {[%clk 0:02:30]}  Bf5 {[%clk 0:02:30]} 14. g4 {[%clk 0:02:25]}  Nxg4 {[%clk 0:02:19]} 15. f3 {[%clk 0:01:32]}  Nf6 {[%clk 0:02:11]} 16. Rf1 {[%clk 0:01:24]}  Bg6 {[%clk 0:01:54]} 17. f4 {[%clk 0:01:00]}  exf4 {[%clk 0:01:48]} 18. exf4 {[%clk 0:01:01]}  Bf5 {[%clk 0:01:47]} 19. Nb5 {[%clk 0:00:46]}  Kd7 {[%clk 0:01:41]} 20. Nd4 {[%clk 0:00:45]}  g6 {[%clk 0:01:41]} 21. Nxf5 {[%clk 0:00:40]}  gxf5 {[%clk 0:01:41]} 22. Kf2 {[%clk 0:00:38]}  Rhg8 {[%clk 0:01:39]} 23. Rg1 {[%clk 0:00:38]}  Ng4+ {[%clk 0:01:29]} 24. Bxg4 {[%clk 0:00:20]}  fxg4 {[%clk 0:01:29]} 25. f5 {[%clk 0:00:18]}  Kd6 {[%clk 0:01:29]} 26. Ke3 {[%clk 0:00:17]}  Ke5 {[%clk 0:01:29]} 27. Raf1 {[%clk 0:00:13]}  Rad8 {[%clk 0:01:29]} 28. f6 {[%clk 0:00:10]}  Rd3+ {[%clk 0:01:27]} 29. Ke2 {[%clk 0:00:10]}  Rf3 {[%clk 0:01:27]} 30. Rxf3 {[%clk 0:00:03]}  gxf3+ {[%clk 0:01:25]} 31. Kf2 {[%clk 0:00:04]}  Rxg1 {[%clk 0:01:25]} 32. Kxg1 {[%clk 0:00:04]}  Kxf6 {[%clk 0:01:25]} 33. Kf2 {[%clk 0:00:05]}  Ke5 {[%clk 0:01:24]} 0-1


[Site "https://www.chess.com"]

[Event "Titled Tuesday Blitz October 5 2021"]
[White "Royal, Shreyas"]
[Black "Papasimakopoulos, Alexandros"]
[WhiteFideId "448869"]
[BlackFideId "4244125"]
[WhiteElo "1931"]
[BlackElo "2352"]
[Result "1-0"]
[Round "04"]
[TimeControl "180+1"]
[Date "2021.10.05"]
[WhiteClock "0:00:51"]
[BlackClock "0:00:37"]

1. d4 {[%clk 0:03:00]}  e6 {[%clk 0:02:59]} 2. c4 {[%clk 0:03:00]}  Nf6 {[%clk 0:02:59]} 3. Nf3 {[%clk 0:03:00]}  Bb4+ {[%clk 0:02:59]} 4. Bd2 {[%clk 0:03:00]}  Qe7 {[%clk 0:02:56]} 5. g3 {[%clk 0:02:56]}  Nc6 {[%clk 0:02:56]} 6. Nc3 {[%clk 0:02:55]}  b6 {[%clk 0:02:55]} 7. Bg2 {[%clk 0:02:55]}  Na5 {[%clk 0:02:54]} 8. b3 {[%clk 0:02:54]}  Bb7 {[%clk 0:02:55]} 9. O-O {[%clk 0:02:54]}  O-O {[%clk 0:02:55]} 10. a3 {[%clk 0:02:49]}  Bxa3 {[%clk 0:02:50]} 11. Nb5 {[%clk 0:02:41]}  Bb4 {[%clk 0:02:50]} 12. Nxc7 {[%clk 0:02:39]}  Rac8 {[%clk 0:02:50]} 13. Nb5 {[%clk 0:02:39]}  Bxf3 {[%clk 0:02:45]} 14. Bxb4 {[%clk 0:02:38]}  Qxb4 {[%clk 0:02:44]} 15. Bxf3 {[%clk 0:02:39]}  a6 {[%clk 0:02:41]} 16. Ra4 {[%clk 0:02:35]}  Qe7 {[%clk 0:02:18]} 17. Nc3 {[%clk 0:02:25]}  d5 {[%clk 0:02:18]} 18. c5 {[%clk 0:02:24]}  Qc7 {[%clk 0:02:17]} 19. b4 {[%clk 0:02:20]}  Nc6 {[%clk 0:02:13]} 20. Rxa6 {[%clk 0:02:19]}  bxc5 {[%clk 0:02:06]} 21. bxc5 {[%clk 0:02:18]}  e5 {[%clk 0:02:03]} 22. Nb5 {[%clk 0:01:58]}  Qb7 {[%clk 0:01:53]} 23. Rb6 {[%clk 0:01:58]}  Qe7 {[%clk 0:01:51]} 24. Nd6 {[%clk 0:01:53]}  Rc7 {[%clk 0:01:50]} 25. e3 {[%clk 0:01:53]}  exd4 {[%clk 0:01:40]} 26. exd4 {[%clk 0:01:54]}  Ne4 {[%clk 0:01:41]} 27. Re1 {[%clk 0:01:49]}  f5 {[%clk 0:01:41]} 28. Qb3 {[%clk 0:01:40]}  Qe6 {[%clk 0:01:32]} 29. Bxe4 {[%clk 0:01:35]}  fxe4 {[%clk 0:01:30]} 30. Rxe4 {[%clk 0:01:35]}  Qd7 {[%clk 0:01:04]} 31. Qxd5+ {[%clk 0:01:34]}  Kh8 {[%clk 0:01:03]} 32. Nf7+ {[%clk 0:01:23]}  Qxf7 {[%clk 0:00:54]} 33. Qxf7 {[%clk 0:01:23]}  Rcxf7 {[%clk 0:00:54]} 34. Rxc6 {[%clk 0:01:23]}  Rxf2 {[%clk 0:00:55]} 35. Rf4 {[%clk 0:01:23]}  R2xf4 {[%clk 0:00:53]} 36. gxf4 {[%clk 0:01:24]}  Kg8 {[%clk 0:00:53]} 37. Rd6 {[%clk 0:01:19]}  Kf7 {[%clk 0:00:52]} 38. c6 {[%clk 0:01:17]}  Ke8 {[%clk 0:00:48]} 39. c7 {[%clk 0:01:11]}  Ke7 {[%clk 0:00:47]} 40. Rd8 {[%clk 0:01:11]}  Rxd8 {[%clk 0:00:43]} 41. cxd8=Q+ {[%clk 0:01:12]}  Kxd8 {[%clk 0:00:44]} 42. Kf2 {[%clk 0:01:13]}  Ke7 {[%clk 0:00:44]} 43. Ke3 {[%clk 0:01:12]}  Kd6 {[%clk 0:00:44]} 44. Ke4 {[%clk 0:01:13]}  g6 {[%clk 0:00:44]} 45. d5 {[%clk 0:01:10]}  h6 {[%clk 0:00:44]} 46. h4 {[%clk 0:01:06]}  Kd7 {[%clk 0:00:37]} 47. Ke5 {[%clk 0:01:05]}  Ke7 {[%clk 0:00:37]} 48. d6+ {[%clk 0:01:05]}  Kf7 {[%clk 0:00:37]} 49. d7 {[%clk 0:00:54]}  Ke7 {[%clk 0:00:36]} 50. d8=Q+ {[%clk 0:00:54]}  Kxd8 {[%clk 0:00:36]} 51. Kf6 {[%clk 0:00:55]}  g5 {[%clk 0:00:36]} 52. fxg5 {[%clk 0:00:55]}  hxg5 {[%clk 0:00:37]} 53. hxg5 {[%clk 0:00:51]} 1-0


[Site "https://www.chess.com"]

[Event "Titled Tuesday Blitz October 5 2021"]
[White "Seliverstov, Vladimir"]
[Black "Trent, Lawrence"]
[WhiteFideId "4192036"]
[BlackFideId "408638"]
[WhiteElo "2489"]
[BlackElo "2474"]
[Result "1-0"]
[Round "04"]
[TimeControl "180+1"]
[Date "2021.10.05"]
[WhiteClock "0:00:10"]
[BlackClock "0:00:09"]

1. c4 {[%clk 0:03:00]}  b6 {[%clk 0:02:59]} 2. d4 {[%clk 0:03:00]}  Bb7 {[%clk 0:02:59]} 3. Nc3 {[%clk 0:02:59]}  f5 {[%clk 0:02:57]} 4. d5 {[%clk 0:02:57]}  Nf6 {[%clk 0:02:53]} 5. g3 {[%clk 0:02:56]}  e6 {[%clk 0:02:52]} 6. Bg2 {[%clk 0:02:56]}  Bb4 {[%clk 0:02:52]} 7. Bd2 {[%clk 0:02:56]}  O-O {[%clk 0:02:50]} 8. Nh3 {[%clk 0:02:56]}  e5 {[%clk 0:02:43]} 9. O-O {[%clk 0:02:47]}  h6 {[%clk 0:02:40]} 10. e4 {[%clk 0:02:28]}  fxe4 {[%clk 0:02:34]} 11. Nxe4 {[%clk 0:02:27]}  Bxd2 {[%clk 0:02:33]} 12. Qxd2 {[%clk 0:02:23]}  d6 {[%clk 0:02:32]} 13. f4 {[%clk 0:02:16]}  Nxe4 {[%clk 0:02:28]} 14. Bxe4 {[%clk 0:02:15]}  Nd7 {[%clk 0:02:29]} 15. fxe5 {[%clk 0:02:12]}  Nxe5 {[%clk 0:02:26]} 16. Nf4 {[%clk 0:02:06]}  Qg5 {[%clk 0:02:12]} 17. Qc3 {[%clk 0:01:43]}  Rae8 {[%clk 0:02:03]} 18. Rae1 {[%clk 0:01:34]}  Bc8 {[%clk 0:01:56]} 19. b3 {[%clk 0:01:19]}  Bg4 {[%clk 0:01:29]} 20. h3 {[%clk 0:01:11]}  Bd7 {[%clk 0:00:43]} 21. Kh2 {[%clk 0:01:10]}  h5 {[%clk 0:00:41]} 22. Qc1 {[%clk 0:00:28]}  h4 {[%clk 0:00:35]} 23. g4 {[%clk 0:00:21]}  Bxg4 {[%clk 0:00:27]} 24. hxg4 {[%clk 0:00:14]}  Nxg4+ {[%clk 0:00:28]} 25. Kh1 {[%clk 0:00:15]}  Qe5 {[%clk 0:00:15]} 26. Bh7+ {[%clk 0:00:13]}  Kxh7 {[%clk 0:00:16]} 27. Rxe5 {[%clk 0:00:13]}  Rxe5 {[%clk 0:00:16]} 28. Ne6 {[%clk 0:00:13]}  Nf2+ {[%clk 0:00:12]} 29. Kg2 {[%clk 0:00:11]}  Re3 {[%clk 0:00:09]} 30. Qxe3 {[%clk 0:00:10]} 1-0


[Site "https://www.chess.com"]

[Event "Titled Tuesday Blitz October 5 2021"]
[White "Sokolin, Leonid"]
[Black "Tristan, Leonardo"]
[WhiteFideId "2009161"]
[BlackFideId "113816"]
[WhiteElo "2394"]
[BlackElo "2404"]
[Result "0-1"]
[Round "04"]
[TimeControl "180+1"]
[Date "2021.10.05"]
[WhiteClock "0:01:26"]
[BlackClock "0:01:35"]

1. e4 {[%clk 0:03:00]}  d5 {[%clk 0:03:00]} 2. exd5 {[%clk 0:03:00]}  Qxd5 {[%clk 0:03:01]} 3. Nc3 {[%clk 0:02:59]}  Qa5 {[%clk 0:03:01]} 4. Bc4 {[%clk 0:02:59]}  Nf6 {[%clk 0:03:01]} 5. Nge2 {[%clk 0:02:59]}  Bg4 {[%clk 0:02:59]} 6. f3 {[%clk 0:02:57]}  Bf5 {[%clk 0:02:59]} 7. d4 {[%clk 0:02:52]}  Nc6 {[%clk 0:02:59]} 8. d5 {[%clk 0:02:42]}  O-O-O {[%clk 0:02:59]} 9. Bd2 {[%clk 0:02:42]}  Qc5 {[%clk 0:02:25]} 10. dxc6 {[%clk 0:02:26]}  Qxc4 {[%clk 0:02:25]} 11. cxb7+ {[%clk 0:02:26]}  Kxb7 {[%clk 0:02:23]} 12. Qc1 {[%clk 0:02:22]}  e5 {[%clk 0:02:20]} 13. b3 {[%clk 0:02:13]}  Qh4+ {[%clk 0:02:10]} 14. Ng3 {[%clk 0:02:07]}  Nh5 {[%clk 0:01:39]} 15. Bg5 {[%clk 0:02:01]}  Qb4 {[%clk 0:01:39]} 16. Nxf5 {[%clk 0:01:50]}  Qxc3+ {[%clk 0:01:39]} 17. Kf2 {[%clk 0:01:28]}  Bc5+ {[%clk 0:01:37]} 18. Be3 {[%clk 0:01:26]}  Rd2+ {[%clk 0:01:35]} 0-1


[Site "https://www.chess.com"]

[Event "Titled Tuesday Blitz October 5 2021"]
[White "Stribuk, Artiom"]
[Black "Diaz Perez, Michel Alejandro"]
[WhiteFideId "13515659"]
[BlackFideId "3517179"]
[WhiteElo "2224"]
[BlackElo "2337"]
[Result "1-0"]
[Round "04"]
[TimeControl "180+1"]
[Date "2021.10.05"]
[WhiteClock "0:00:04"]
[BlackClock "0:00:02"]

1. d4 {[%clk 0:03:00]}  Nf6 {[%clk 0:02:59]} 2. Nf3 {[%clk 0:02:58]}  e6 {[%clk 0:03:00]} 3. c4 {[%clk 0:02:59]}  d5 {[%clk 0:02:59]} 4. g3 {[%clk 0:02:58]}  Be7 {[%clk 0:02:58]} 5. Bg2 {[%clk 0:02:58]}  O-O {[%clk 0:02:59]} 6. O-O {[%clk 0:02:57]}  dxc4 {[%clk 0:02:59]} 7. Na3 {[%clk 0:02:58]}  Bxa3 {[%clk 0:02:57]} 8. bxa3 {[%clk 0:02:58]}  Nc6 {[%clk 0:02:38]} 9. a4 {[%clk 0:02:56]}  Re8 {[%clk 0:02:35]} 10. Ba3 {[%clk 0:02:53]}  h6 {[%clk 0:02:16]} 11. Rc1 {[%clk 0:02:32]}  Na5 {[%clk 0:02:12]} 12. Ne5 {[%clk 0:02:23]}  Nd5 {[%clk 0:02:02]} 13. e4 {[%clk 0:02:03]}  Nb6 {[%clk 0:01:53]} 14. Qh5 {[%clk 0:01:41]}  Qf6 {[%clk 0:01:30]} 15. Bb4 {[%clk 0:01:36]}  Nc6 {[%clk 0:01:22]} 16. Nxc6 {[%clk 0:01:35]}  bxc6 {[%clk 0:01:23]} 17. e5 {[%clk 0:01:35]}  Qf5 {[%clk 0:01:12]} 18. Qe2 {[%clk 0:00:48]}  Ba6 {[%clk 0:01:05]} 19. Be4 {[%clk 0:00:47]}  Qg5 {[%clk 0:01:00]} 20. h4 {[%clk 0:00:43]}  Qd8 {[%clk 0:00:57]} 21. Bxc6 {[%clk 0:00:40]}  Rb8 {[%clk 0:00:57]} 22. Bc5 {[%clk 0:00:34]}  Bb7 {[%clk 0:00:21]} 23. Bxb7 {[%clk 0:00:34]}  Rxb7 {[%clk 0:00:21]} 24. a5 {[%clk 0:00:35]}  Nd5 {[%clk 0:00:21]} 25. Qxc4 {[%clk 0:00:35]}  Qd7 {[%clk 0:00:18]} 26. Qa6 {[%clk 0:00:33]}  Reb8 {[%clk 0:00:17]} 27. Bxa7 {[%clk 0:00:33]}  Nb4 {[%clk 0:00:15]} 28. Qc4 {[%clk 0:00:16]}  Rxa7 {[%clk 0:00:15]} 29. Rb1 {[%clk 0:00:17]}  Nc6 {[%clk 0:00:14]} 30. a6 {[%clk 0:00:15]}  Rxb1 {[%clk 0:00:06]} 31. Rxb1 {[%clk 0:00:16]}  Nxd4 {[%clk 0:00:05]} 32. Rb8+ {[%clk 0:00:13]}  Kh7 {[%clk 0:00:05]} 33. Qd3+ {[%clk 0:00:14]}  g6 {[%clk 0:00:04]} 34. Rb7 {[%clk 0:00:14]}  Ra8 {[%clk 0:00:03]} 35. a7 {[%clk 0:00:14]}  Qd5 {[%clk 0:00:04]} 36. Qa6 {[%clk 0:00:08]}  Nf3+ {[%clk 0:00:03]} 37. Kf1 {[%clk 0:00:09]}  Nd2+ {[%clk 0:00:02]} 38. Ke2 {[%clk 0:00:08]}  Ne4 {[%clk 0:00:02]} 39. Rb8 {[%clk 0:00:06]}  Nc5 {[%clk 0:00:02]} 40. Qc8 {[%clk 0:00:04]} 1-0


[Site "https://www.chess.com"]

[Event "Titled Tuesday Blitz October 5 2021"]
[White "Timmermans, Mark"]
[Black "Girinath, P.D.S."]
[WhiteFideId "1026399"]
[BlackFideId "5000572"]
[WhiteElo "2460"]
[BlackElo "2333"]
[Result "1-0"]
[Round "04"]
[TimeControl "180+1"]
[Date "2021.10.05"]
[WhiteClock "0:00:56"]
[BlackClock "0:00:03"]

1. b4 {[%clk 0:03:00]}  c6 {[%clk 0:02:49]} 2. Bb2 {[%clk 0:02:58]}  Nf6 {[%clk 0:02:44]} 3. c4 {[%clk 0:02:58]}  e5 {[%clk 0:02:40]} 4. b5 {[%clk 0:02:54]}  d6 {[%clk 0:02:23]} 5. e3 {[%clk 0:02:53]}  g6 {[%clk 0:02:19]} 6. a4 {[%clk 0:02:52]}  Bg7 {[%clk 0:02:19]} 7. Nc3 {[%clk 0:02:47]}  O-O {[%clk 0:02:19]} 8. Nf3 {[%clk 0:02:47]}  Re8 {[%clk 0:02:19]} 9. Be2 {[%clk 0:02:43]}  e4 {[%clk 0:02:05]} 10. Nd4 {[%clk 0:02:42]}  c5 {[%clk 0:02:03]} 11. Nc2 {[%clk 0:02:42]}  Nbd7 {[%clk 0:02:00]} 12. O-O {[%clk 0:02:40]}  Ne5 {[%clk 0:01:58]} 13. Na3 {[%clk 0:02:39]}  Bf5 {[%clk 0:01:46]} 14. f4 {[%clk 0:02:30]}  exf3 {[%clk 0:01:44]} 15. Bxf3 {[%clk 0:02:31]}  Nxf3+ {[%clk 0:01:36]} 16. Qxf3 {[%clk 0:02:32]}  Ne4 {[%clk 0:01:33]} 17. Nab1 {[%clk 0:02:13]}  Qd7 {[%clk 0:01:22]} 18. Qe2 {[%clk 0:01:46]}  d5 {[%clk 0:00:31]} 19. cxd5 {[%clk 0:01:43]}  Nxc3 {[%clk 0:00:30]} 20. Nxc3 {[%clk 0:01:42]}  Bxc3 {[%clk 0:00:29]} 21. Bxc3 {[%clk 0:01:37]}  Qxd5 {[%clk 0:00:29]} 22. Rf4 {[%clk 0:01:30]}  Re4 {[%clk 0:00:24]} 23. Qf3 {[%clk 0:01:27]}  Rd8 {[%clk 0:00:21]} 24. g4 {[%clk 0:01:00]}  Rxf4 {[%clk 0:00:10]} 25. Qxf4 {[%clk 0:01:01]}  Be6 {[%clk 0:00:05]} 26. Qf6 {[%clk 0:01:01]}  Kf8 {[%clk 0:00:05]} 27. Qh8+ {[%clk 0:00:55]}  Ke7 {[%clk 0:00:03]} 28. Bf6+ {[%clk 0:00:56]} 1-0


[Site "https://www.chess.com"]